Workbook

Sheet +NZD
AH2: Pair | AI2: BUY | AJ2: SELL
B3: AUDCAD | C3: AUDJPY | D3: AUDNZD | E3: AUDUSD | F3: CADCHF | G3: CADJPY | H3: CHFJPY | I3: EURAUD | J3: EURCAD | K3: EURCHF | L3: EURGBP | M3: EURJPY | N3: GBPCAD | O3: GBPAUD | P3: GBPNZD | Q3: GBPCHF | R3: GBPJPY | S3: GBPUSD | T3: NZDJPY | U3: NZDUSD | V3: USDCAD | W3: USDCHF | X3: USDJPY | Y3: AUDCHF | Z3: EURUSD | AA3: EURNZD | AB3: NZDCAD | AC3: NZDCHF | AH3: AUDCAD | AI3: =HLOOKUP(LEFT(AH3,3),$C$17:$J$18,2,FALSE) -> 2.428571429 | AJ3: =HLOOKUP(RIGHT(AH3,3),$C$17:$J$18,2,FALSE) -> 4.714285714
A4: High | B4: =[1]!AUDCAD -> 1.0644 | C4: =[1]!AUDJPY -> 101.74 | D4: =[1]!AUDNZD -> 1.2401 | E4: =[1]!AUDUSD -> 1.044 | F4: =[1]!CADCHF -> 0.9301 | G4: =[1]!CADJPY -> 96.24 | H4: =[1]!CHFJPY -> 104.82 | I4: =[1]!EURAUD -> 1.256 | J4: =[1]!EURCAD -> 1.3314 | K4: =[1]!EURCHF -> 1.2171 | L4: =[1]!EURGBP -> 0.8516 | M4: =[1]!EURJPY -> 127.31 | N4: =[1]!GBPCAD -> 1.5674 | O4: =[1]!GBPAUD -> 1.4792 | P4: =[1]!GBPNZD -> 1.8262 | Q4: =[1]!GBPCHF -> 1.4343 | R4: =[1]!GBPJPY -> 150.01 | S4: =[1]!GBPUSD -> 1.5363 | T4: =[1]!NZDJPY -> 82.44 | U4: =[1]!NZDUSD -> 0.8438 | V4: =[1]!USDCAD -> 1.0236 | W4: =[1]!USDCHF -> 0.9435 | X4: =[1]!USDJPY -> 97.84 | Y4: =[1]!AUDCHF -> 0.9825 | Z4: =[1]!EURUSD -> 1.3039 | AA4: =[1]!EURNZD -> 1.551 | AB4: =[1]!NZDCAD -> 0.8589 | AC4: =[1]!NZDCHF -> 0.7924 | AH4: AUDJPY | AI4: =HLOOKUP(LEFT(AH4,3),$C$17:$J$18,2,FALSE) -> 2.428571429 | AJ4: =HLOOKUP(RIGHT(AH4,3),$C$17:$J$18,2,FALSE) -> 0.5714285714
A5: Ask | B5: =[2]!AUDCAD -> 1.0571 | C5: =[2]!AUDJPY -> 101.29 | D5: =[2]!AUDNZD -> 1.233 | E5: =[2]!AUDUSD -> 1.0385 | F5: =[2]!CADCHF -> 0.9187 | G5: =[2]!CADJPY -> 95.92 | H5: =[2]!CHFJPY -> 104.42 | I5: =[2]!EURAUD -> 1.2519 | J5: =[2]!EURCAD -> 1.3231 | K5: =[2]!EURCHF -> 1.2145 | L5: =[2]!EURGBP -> 0.8476 | M5: =[2]!EURJPY -> 126.81 | N5: =[2]!GBPCAD -> 1.5614 | O5: =[2]!GBPAUD -> 1.4778 | P5: =[2]!GBPNZD -> 1.8207 | Q5: =[2]!GBPCHF -> 1.4332 | R5: =[2]!GBPJPY -> 149.67 | S5: =[2]!GBPUSD -> 1.5338 | T5: =[2]!NZDJPY -> 82.32 | U5: =[2]!NZDUSD -> 0.8434 | V5: =[2]!USDCAD -> 1.0178 | W5: =[2]!USDCHF -> 0.9351 | X5: =[2]!USDJPY -> 97.57 | Y5: =[2]!AUDCHF -> 0.9709 | Z5: =[2]!EURUSD -> 1.2995 | AA5: =[2]!EURNZD -> 1.5423 | AB5: =[2]!NZDCAD -> 0.8587 | AC5: =[2]!NZDCHF -> 0.7889 | AE5: 0 | AF5: 0 | AH5: AUDNZD | AI5: 2.428571429 | AJ5: 4
A6: Bid | B6: =[3]!AUDCAD -> 1.0562 | C6: =[3]!AUDJPY -> 101.25 | D6: =[3]!AUDNZD -> 1.2301 | E6: =[3]!AUDUSD -> 1.0382 | F6: =[3]!CADCHF -> 0.918 | G6: =[3]!CADJPY -> 95.83 | H6: =[3]!CHFJPY -> 104.37 | I6: =[3]!EURAUD -> 1.2508 | J6: =[3]!EURCAD -> 1.3222 | K6: =[3]!EURCHF -> 1.2141 | L6: =[3]!EURGBP -> 0.8473 | M6: =[3]!EURJPY -> 126.78 | N6: =[3]!GBPCAD -> 1.56 | O6: =[3]!GBPAUD -> 1.4759 | P6: =[3]!GBPNZD -> 1.8173 | Q6: =[3]!GBPCHF -> 1.4325 | R6: =[3]!GBPJPY -> 149.6 | S6: =[3]!GBPUSD -> 1.5335 | T6: =[3]!NZDJPY -> 82.18 | U6: =[3]!NZDUSD -> 0.8431 | V6: =[3]!USDCAD -> 1.0175 | W6: =[3]!USDCHF -> 0.9348 | X6: =[3]!USDJPY -> 97.54 | Y6: =[3]!AUDCHF -> 0.9695 | Z6: =[3]!EURUSD -> 1.2992 | AA6: =[3]!EURNZD -> 1.5399 | AB6: =[3]!NZDCAD -> 0.8573 | AC6: =[3]!NZDCHF -> 0.787 | AE6: 3 | AF6: 1 | AH6: AUDUSD | AI6: 2.428571429 | AJ6: 4
A7: Low | B7: =[4]!AUDCAD -> 1.0533 | C7: =[4]!AUDJPY -> 99.78 | D7: =[4]!AUDNZD -> 1.2296 | E7: =[4]!AUDUSD -> 1.0354 | F7: =[4]!CADCHF -> 0.9116 | G7: =[4]!CADJPY -> 93.89 | H7: =[4]!CHFJPY -> 101.92 | I7: =[4]!EURAUD -> 1.2367 | J7: =[4]!EURCAD -> 1.3072 | K7: =[4]!EURCHF -> 1.2134 | L7: =[4]!EURGBP -> 0.8469 | M7: =[4]!EURJPY -> 123.86 | N7: =[4]!GBPCAD -> 1.5405 | O7: =[4]!GBPAUD -> 1.4573 | P7: =[4]!GBPNZD -> 1.8059 | Q7: =[4]!GBPCHF -> 1.4254 | R7: =[4]!GBPJPY -> 145.94 | S7: =[4]!GBPUSD -> 1.5198 | T7: =[4]!NZDJPY -> 80.51 | U7: =[4]!NZDUSD -> 0.8373 | V7: =[4]!USDCAD -> 1.0122 | W7: =[4]!USDCHF -> 0.9312 | X7: =[4]!USDJPY -> 95.76 | Y7: =[4]!AUDCHF -> 0.9659 | Z7: =[4]!EURUSD -> 1.2899 | AA7: =[4]!EURNZD -> 1.5323 | AB7: =[4]!NZDCAD -> 0.849 | AC7: =[4]!NZDCHF -> 0.782 | AE7: 10 | AF7: 2 | AH7: CADCHF | AI7: 4.714285714 | AJ7: 6.428571429
AE8: 25 | AF8: 3 | AH8: CADJPY | AI8: 4.714285714 | AJ8: 0.5714285714
A9: PIP Range | B9: =($B4:$AC4-$B7:$AC7)*100000 -> 1110 | C9: =($B4:$AC4-$B7:$AC7)*1000 -> 1960 | D9: =($B4:$AC4-$B7:$AC7)*100000 -> 1050 | E9: 860 | F9: 1850 | G9: =($B4:$AC4-$B7:$AC7)*1000 -> 2350 | H9: =($B4:$AC4-$B7:$AC7)*1000 -> 2900 | I9: =($B4:$AC4-$B7:$AC7)*100000 -> 1930 | J9: 2420 | K9: 370 | L9: 470 | M9: =($B4:$AC4-$B7:$AC7)*1000 -> 3450 | N9: 2690 | O9: 2190 | P9: 2030 | Q9: 890 | R9: =($B4:$AC4-$B7:$AC7)*1000 -> 4070 | S9: 1650 | T9: =($B4:$AC4-$B7:$AC7)*1000 -> 1930 | U9: 650 | V9: 1140 | W9: 1230 | X9: =($B4:$AC4-$B7:$AC7)*1000 -> 2080 | Y9: 1660 | Z9: 1400 | AA9: 1870 | AB9: 990 | AC9: =($B4:$AC4-$B7:$AC7)*100000 -> 1040 | AE9: 40 | AF9: 4 | AH9: CHFJPY | AI9: 6.428571429 | AJ9: 0.5714285714
A10: Bid Ratio | B10: =($B6:$AC6-$B7:$AC7)/$B22:$AC22*100000 -> 0.1474789227 | C10: =($B6:$AC6-$B7:$AC7)/$B22:$AC22*1000 -> 0.924 | D10: =($B6:$AC6-$B7:$AC7)/$B22:$AC22*100000 -> 0.02251117735 | E10: 0.1602086438 | F10: 0.4350691931 | G10: =($B6:$AC6-$B7:$AC7)/$B22:$AC22*1000 -> 1.291894614 | H10: =($B6:$AC6-$B7:$AC7)/$B22:$AC22*1000 -> 1.382213115 | I10: 1.035706089 | J10: 1.112784756 | K10: 0.05077086438 | L10: 0.02292995529 | M10: =($B6:$AC6-$B7:$AC7)/$B22:$AC22*1000 -> 2.525594848 | N10: 1.518951192 | O10: 0.6632165212 | P10: 1.147329785 | Q10: 0.6737706515 | R10: =($B6:$AC6-$B7:$AC7)/$B22:$AC22*1000 -> 3.776142857 | S10: 0.9960719608 | T10: =($B6:$AC6-$B7:$AC7)/$B22:$AC22*1000 -> 0.822778103 | U10: 0.2605492868 | V10: 0.2096981052 | W10: 0.2001230573 | X10: =($B6:$AC6-$B7:$AC7)/$B22:$AC22*1000 -> 0.9388770492 | Y10: 0.2484762614 | Z10: 0.6642857143 | AA10: 0.6388401107 | AB10: 0.3747988077 | AC10: 0.2691771343 | AE10: 50 | AF10: 5 | AH10: EURAUD | AI10: 5.714285714 | AJ10: 2.428571429
AE11: 60 | AF11: 6 | AH11: EURCAD | AI11: 5.714285714 | AJ11: 4.714285714
A12: Relative | B12: =LEFT(B3,3) -> AUD | C12: =LEFT(C3,3) -> AUD | D12: AUD | E12: AUD | F12: =LEFT(F3,3) -> CAD | G12: CAD | H12: CHF | I12: EUR | J12: EUR | K12: EUR | L12: EUR | M12: EUR | N12: GBP | O12: GBP | P12: GBP | Q12: GBP | R12: GBP | S12: GBP | T12: NZD | U12: NZD | V12: USD | W12: USD | X12: USD | Y12: =LEFT(Y3,3) -> AUD | Z12: =LEFT(Z3,3) -> EUR | AA12: =LEFT(AA3,3) -> EUR | AB12: =LEFT(AB3,3) -> NZD | AC12: =LEFT(AC3,3) -> NZD | AE12: 75 | AF12: 7 | AH12: EURCHF | AI12: 5.714285714 | AJ12: 6.428571429
A13: Strength | B13: =LOOKUP(100*B10,$AE5:$AE14,$AF5:$AF14) -> 2 | C13: =LOOKUP(100*C10,$AE5:$AE14,$AF5:$AF14) -> 8 | D13: 0 | E13: 2 | F13: =LOOKUP(100*F10,$AE5:$AE14,$AF5:$AF14) -> 4 | G13: 9 | H13: 9 | I13: 9 | J13: 9 | K13: 1 | L13: 0 | M13: 9 | N13: 9 | O13: 6 | P13: 9 | Q13: 6 | R13: 9 | S13: 9 | T13: 7 | U13: 3 | V13: 2 | W13: 2 | X13: 8 | Y13: =LOOKUP(100*Y10,$AE5:$AE14,$AF5:$AF14) -> 2 | Z13: =LOOKUP(100*Z10,$AE5:$AE14,$AF5:$AF14) -> 6 | AA13: =LOOKUP(100*AA10,$AE5:$AE14,$AF5:$AF14) -> 6 | AB13: =LOOKUP(100*AB10,$AE5:$AE14,$AF5:$AF14) -> 3 | AC13: =LOOKUP(100*AC10,$AE5:$AE14,$AF5:$AF14) -> 3 | AE13: 90 | AF13: 8 | AH13: EURGBP | AI13: 5.714285714 | AJ13: 8.142857143
B14: =RIGHT(B3,3) -> CAD | C14: =RIGHT(C3,3) -> JPY | D14: NZD | E14: USD | F14: =RIGHT(F3,3) -> CHF | G14: JPY | H14: JPY | I14: AUD | J14: CAD | K14: CHF | L14: GBP | M14: JPY | N14: CAD | O14: AUD | P14: NZD | Q14: CHF | R14: JPY | S14: USD | T14: JPY | U14: USD | V14: CAD | W14: CHF | X14: JPY | Y14: =RIGHT(Y3,3) -> CHF | Z14: =RIGHT(Z3,3) -> USD | AA14: =RIGHT(AA3,3) -> NZD | AB14: =RIGHT(AB3,3) -> CAD | AC14: =RIGHT(AC3,3) -> CHF | AE14: 97 | AF14: 9 | AH14: EURJPY | AI14: 5.714285714 | AJ14: 0.5714285714
B15: =9-B13 -> 7 | C15: =9-C13 -> 1 | D15: 9 | E15: 7 | F15: =9-F13 -> 5 | G15: 0 | H15: 0 | I15: 0 | J15: 0 | K15: 8 | L15: 9 | M15: 0 | N15: 0 | O15: 3 | P15: 0 | Q15: 3 | R15: 0 | S15: 0 | T15: 2 | U15: 6 | V15: 7 | W15: 7 | X15: 1 | Y15: =9-Y13 -> 7 | Z15: =9-Z13 -> 3 | AA15: =9-AA13 -> 3 | AB15: =9-AB13 -> 6 | AC15: =9-AC13 -> 6 | AH15: GBPCAD | AI15: 8.142857143 | AJ15: 4.714285714
AH16: GBPAUD | AI16: 8.142857143 | AJ16: 2.428571429
A17: Total Strength | C17: USD | D17: EUR | E17: GBP | F17: CHF | G17: NZD | H17: AUD | I17: JPY | J17: CAD | L17: Strong | AH17: GBPCAD | AI17: 8.142857143 | AJ17: 4.714285714
C18: =(V13+W13+X13+E15+S15+U15+Z15)/C19 -> 4 | D18: =(I13+J13+K13+L13+M13+Z13+AA13)/D19 -> 5.714285714 | E18: =(N13+O13+P13+Q13+R13+S13+L15)/E19 -> 8.142857143 | F18: =(F15+H13+K15+Q15+W15+Y15+AC15)/F19 -> 6.428571429 | G18: =(T13+U13+D15+P15+AA15+AB13+AC13)/G19 -> 4 | H18: =(B13+C13+D13+E13+I15+O15+Y13)/H19 -> 2.428571429 | I18: =(C15+G15+H15+M15+R15+T15+X15)/I19 -> 0.5714285714 | J18: =(F13+G13+B15+J15+N15+V15+AB15)/J19 -> 4.714285714 | L18: Rising | AH18: GBPCHF | AI18: 8.142857143 | AJ18: 6.428571429
B19: # of evaluation points | C19: =COUNTIF($B$12:$AC$15,"=USD") -> 7 | D19: =COUNTIF($B$12:$AC$15,"=EUR") -> 7 | E19: =COUNTIF($B$12:$AC$15,"=GBP") -> 7 | F19: =COUNTIF($B$12:$AC$15,"=CHF") -> 7 | G19: =COUNTIF($B$12:$AC$15,"=NZD") -> 7 | H19: =COUNTIF($B$12:$AC$15,"=AUD") -> 7 | I19: =COUNTIF($B$12:$AC$15,"=JPY") -> 7 | J19: =COUNTIF($B$12:$AC$15,"=CAD") -> 7 | L19: Neutral | AH19: GBPJPY | AI19: 8.142857143 | AJ19: 0.5714285714
L20: Weak | Z20: eurusd | AH20: GBPUSD | AI20: 8.142857143 | AJ20: 4
B21: =B9*C41*F41 -> 106056.06 | C21: =C9*C46*F46 -> 231468.16 | D21: =D9*C52*F52 -> 88817.4 | E21: =E9*C42*F42 -> 92450 | F21: =F9*C39*F39 -> 236282 | G21: =G9*C40*F40 -> 294017.9 | H21: =H9*C35*F35 -> 307388.4 | I21: =I9*C43*F43 -> 266351.58 | J21: =J9*C37*F37 -> 337299.6 | K21: =K9*C31*F31 -> 50419.53 | L21: =L9*C30*F30 -> 50619.94 | M21: =M9*C32*F32 -> 560635.35 | N21: =N9*C38*F38 -> 393678.81 | O21: =O9*C44*F44 -> 146712.48 | P21: =P9*C49*F49 -> 383848.64 | Q21: =Q9*C33*F33 -> 158680.77 | R21: =R9*C34*F34 -> 788936.94 | S21: =S9*C27*F27 -> 225390 | T21: =T9*C51*F51 -> 178650.45 | U21: =U9*C48*F48 -> 54860 | V21: =V9*C36*F36 -> 84743.04 | W21: =(W9*C28*F28) -> 128463.66 | X21: =(X9*C29*F29) -> 206125.92 | Y21: =(Y9*C45*F45) -> 215263.82 | Z21: =(Z9*C26*F26) -> 187880 | AA21: =(AA9*C47*F47) -> 295325.36 | AB21: =(AB9*C53*F53) -> 83991.6 | AC21: =(AC9*C50*F50) -> 105191.84 | AH21: NZDJPY | AI21: 4 | AJ21: 0.5714285714
B22: =(Z21/$B21:$AC21)*$B9:$AC9 -> 1966.382685 | C22: =(Z21/$B21:$AC21)*$B9:$AC9 -> 1590.909091 | D22: =(Z21/$B21:$AC21)*$B9:$AC9 -> 2221.118835 | E22: =(Z21/$B21:$AC21)*$B9:$AC9 -> 1747.72093 | F22: =(Z21/$B21:$AC21)*$B9:$AC9 -> 1471.030379 | G22: =(Z21/$B21:$AC21)*$B9:$AC9 -> 1501.670477 | H22: =(Z21/$B21:$AC21)*$B9:$AC9 -> 1772.519718 | I22: =(Z21/$B21:$AC21)*$B9:$AC9 -> 1361.390084 | J22: =(Z21/$B21:$AC21)*$B9:$AC9 -> 1347.96958 | K22: =(Z21/$B21:$AC21)*$B9:$AC9 -> 1378.743515 | L22: =(Z21/$B21:$AC21)*$B9:$AC9 -> 1744.443 | M22: =(Z21/$B21:$AC21)*$B9:$AC9 -> 1156.163271 | N22: =(Z21/$B21:$AC21)*$B9:$AC9 -> 1283.780552 | O22: =(Z21/$B21:$AC21)*$B9:$AC9 -> 2804.513972 | P22: =(Z21/$B21:$AC21)*$B9:$AC9 -> 993.6114402 | Q22: =(Z21/$B21:$AC21)*$B9:$AC9 -> 1053.77104 | R22: =(Z21/$B21:$AC21)*$B9:$AC9 -> 969.2429917 | S22: =(Z21/$B21:$AC21)*$B9:$AC9 -> 1375.402635 | T22: =(Z21/$B21:$AC21)*$B9:$AC9 -> 2029.708853 | U22: =(Z21/$B21:$AC21)*$B9:$AC9 -> 2226.066351 | V22: =(Z21/$B21:$AC21)*$B9:$AC9 -> 2527.442962 | W22: =(Z21/$B21:$AC21)*$B9:$AC9 -> 1798.893166 | X22: =(Z21/$B21:$AC21)*$B9:$AC9 -> 1895.881896 | Y22: =(Z21/$B21:$AC21)*$B9:$AC9 -> 1448.830556 | Z22: =(Z21/$B21:$AC21)*$B9:$AC9 -> 1400 | AA22: =(Z21/$B21:$AC21)*$B9:$AC9 -> 1189.656046 | AB22: =(Z21/$B21:$AC21)*$B9:$AC9 -> 2214.521452 | AC22: =(Z21/$B21:$AC21)*$B9:$AC9 -> 1857.512902
AH24: NZDUSD | AI24: 4 | AJ24: 4
C25: pips | D25: $ | E25: % | F25: pip value | AH25: USDCAD | AI25: 4 | AJ25: 4.714285714
B26: EURUSD | C26: 134.2 | D26: 1,342.0 | E26: 0.95 | F26: 1 | AH26: USDCHF | AI26: 4 | AJ26: 6.428571429
B27: GBPUSD | C27: 136.6 | D27: 1,366.2 | E27: 0.84 | F27: 1 | AH27: USDJPY | AI27: 4 | AJ27: 0.5714285714
B28: USDCHF | C28: 101.4 | D28: 1,125.8 | E28: 1.12 | F28: 1.03
B29: USDJPY | C29: 81.9 | D29: 1,016.3 | E29: 1.01 | F29: 1.21
B30: EURGBP | C30: 68.6 | D30: 1,113.5 | E30: 0.79 | F30: 1.57
B31: EURCHF | C31: 132.3 | D31: 1,469.1 | E31: 1.03 | F31: 1.03
B32: EURJPY | C32: 134.3 | D32: 1,666.7 | E32: 1.17 | F32: 1.21
B33: GBPCHF | C33: 173.1 | D33: 1,921.8 | E33: 1.18 | F33: 1.03
B34: GBPJPY | C34: 160.2 | D34: 1,987.3 | E34: 1.21 | F34: 1.21
B35: CHFJPY | C35: 87.6 | D35: 1,087.0 | E35: 0.98 | F35: 1.21
B36: USDCAD | C36: 73.6 | D36: 748 | E36: 0.75 | F36: 1.01
B37: EURCAD | C37: 138 | D37: 1,402.6 | E37: 1 | F37: 1.01
B38: GBPCAD | C38: 144.9 | D38: 1,472.3 | E38: 0.91 | F38: 1.01
B39: CADCHF | C39: 124 | D39: 1,376.3 | E39: 1.34 | F39: 1.03
B40: CADJPY | C40: 103.4 | D40: 1,282.5 | E40: 1.25 | F40: 1.21
B41: AUDCAD | C41: 94.6 | D41: 961.9 | E41: 0.96 | F41: 1.01
B42: AUDUSD | C42: 107.5 | D42: 1,074.8 | E42: 1.07 | F42: 1
B43: EURAUD | C43: 139.4 | D43: 1,388.0 | E43: 0.99 | F43: 0.99
B44: AUDGBP | C44: 63.2 | D44: 1,025.9 | E44: 1.02 | F44: 1.06
B45: AUDCHF | C45: 125.9 | D45: 1,398.0 | E45: 1.38 | F45: 1.03
B46: AUDJPY | C46: 97.6 | D46: 1,211.3 | E46: 1.2 | F46: 1.21
B47: EURNZD | C47: 207.8 | D47: 1,517.4 | E47: 1.08 | F47: 0.76
B48: NZDUSD | C48: 84.4 | D48: 844.2 | E48: 1.15 | F48: 1
B49: GBPNZD | C49: 248.8 | D49: 1,816.6 | E49: 1.13 | F49: 0.76
B50: NZDCHF | C50: 98.2 | D50: 1,090.5 | E50: 1.48 | F50: 1.03
B51: NZDJPY | C51: 76.5 | D51: 949.2 | E51: 1.28 | F51: 1.21
B52: AUDNZD | C52: 111.3 | D52: 812.5 | E52: 0.81 | F52: 0.76
B53: NZDCAD | C53: 84 | D53: 853.5 | E53: 1.17 | F53: 1.01

Sheet List1 (hidden)

Sheet 28 párový prehľad
C4: AUDCAD | D4: AUDJPY | E4: AUDNZD | F4: AUDUSD | G4: CADCHF | H4: CADJPY | I4: CHFJPY | J4: EURAUD | K4: EURCAD | L4: EURCHF | M4: EURGBP | N4: EURJPY | O4: GBPCAD | P4: GBPAUD | Q4: GBPNZD | R4: GBPCHF | S4: GBPJPY | T4: GBPUSD | U4: NZDJPY | V4: NZDUSD | W4: USDCAD | X4: USDCHF | Y4: USDJPY | Z4: AUDCHF | AA4: EURUSD | AB4: EURNZD | AC4: NZDCAD | AD4: NZDCHF
B5: High | C5: =[1]!AUDCAD -> 1.0644 | D5: =[1]!AUDJPY -> 101.74 | E5: =[1]!AUDNZD -> 1.2401 | F5: =[1]!AUDUSD -> 1.044 | G5: =[1]!CADCHF -> 0.9301 | H5: =[1]!CADJPY -> 96.24 | I5: =[1]!CHFJPY -> 104.82 | J5: =[1]!EURAUD -> 1.256 | K5: =[1]!EURCAD -> 1.3314 | L5: =[1]!EURCHF -> 1.2171 | M5: =[1]!EURGBP -> 0.8516 | N5: =[1]!EURJPY -> 127.31 | O5: =[1]!GBPCAD -> 1.5674 | P5: =[1]!GBPAUD -> 1.4792 | Q5: =[1]!GBPNZD -> 1.8262 | R5: =[1]!GBPCHF -> 1.4343 | S5: =[1]!GBPJPY -> 150.01 | T5: =[1]!GBPUSD -> 1.5363 | U5: =[1]!NZDJPY -> 82.44 | V5: =[1]!NZDUSD -> 0.8438 | W5: =[1]!USDCAD -> 1.0236 | X5: =[1]!USDCHF -> 0.9435 | Y5: =[1]!USDJPY -> 97.84 | Z5: =[1]!AUDCHF -> 0.9825 | AA5: =[1]!EURUSD -> 1.3039 | AB5: =[1]!EURNZD -> 1.551 | AC5: =[1]!NZDCAD -> 0.8589 | AD5: =[1]!NZDCHF -> 0.7924
B6: Ask | C6: =[2]!AUDCAD -> 1.0571 | D6: =[2]!AUDJPY -> 101.29 | E6: =[2]!AUDNZD -> 1.233 | F6: =[2]!AUDUSD -> 1.0385 | G6: =[2]!CADCHF -> 0.9187 | H6: =[2]!CADJPY -> 95.92 | I6: =[2]!CHFJPY -> 104.42 | J6: =[2]!EURAUD -> 1.2519 | K6: =[2]!EURCAD -> 1.3231 | L6: =[2]!EURCHF -> 1.2145 | M6: =[2]!EURGBP -> 0.8476 | N6: =[2]!EURJPY -> 126.81 | O6: =[2]!GBPCAD -> 1.5614 | P6: =[2]!GBPAUD -> 1.4778 | Q6: =[2]!GBPNZD -> 1.8207 | R6: =[2]!GBPCHF -> 1.4332 | S6: =[2]!GBPJPY -> 149.67 | T6: =[2]!GBPUSD -> 1.5338 | U6: =[2]!NZDJPY -> 82.32 | V6: =[2]!NZDUSD -> 0.8434 | W6: =[2]!USDCAD -> 1.0178 | X6: =[2]!USDCHF -> 0.9351 | Y6: =[2]!USDJPY -> 97.57 | Z6: =[2]!AUDCHF -> 0.9709 | AA6: =[2]!EURUSD -> 1.2995 | AB6: =[2]!EURNZD -> 1.5423 | AC6: =[2]!NZDCAD -> 0.8587 | AD6: =[2]!NZDCHF -> 0.7889
B7: Bid | C7: =[3]!AUDCAD -> 1.0562 | D7: =[3]!AUDJPY -> 101.25 | E7: =[3]!AUDNZD -> 1.2301 | F7: =[3]!AUDUSD -> 1.0382 | G7: =[3]!CADCHF -> 0.918 | H7: =[3]!CADJPY -> 95.83 | I7: =[3]!CHFJPY -> 104.37 | J7: =[3]!EURAUD -> 1.2508 | K7: =[3]!EURCAD -> 1.3222 | L7: =[3]!EURCHF -> 1.2141 | M7: =[3]!EURGBP -> 0.8473 | N7: =[3]!EURJPY -> 126.78 | O7: =[3]!GBPCAD -> 1.56 | P7: =[3]!GBPAUD -> 1.4759 | Q7: =[3]!GBPNZD -> 1.8173 | R7: =[3]!GBPCHF -> 1.4325 | S7: =[3]!GBPJPY -> 149.6 | T7: =[3]!GBPUSD -> 1.5335 | U7: =[3]!NZDJPY -> 82.18 | V7: =[3]!NZDUSD -> 0.8431 | W7: =[3]!USDCAD -> 1.0175 | X7: =[3]!USDCHF -> 0.9348 | Y7: =[3]!USDJPY -> 97.54 | Z7: =[3]!AUDCHF -> 0.9695 | AA7: =[3]!EURUSD -> 1.2992 | AB7: =[3]!EURNZD -> 1.5399 | AC7: =[3]!NZDCAD -> 0.8573 | AD7: =[3]!NZDCHF -> 0.787
B8: Low | C8: =[4]!AUDCAD -> 1.0533 | D8: =[4]!AUDJPY -> 99.78 | E8: =[4]!AUDNZD -> 1.2296 | F8: =[4]!AUDUSD -> 1.0354 | G8: =[4]!CADCHF -> 0.9116 | H8: =[4]!CADJPY -> 93.89 | I8: =[4]!CHFJPY -> 101.92 | J8: =[4]!EURAUD -> 1.2367 | K8: =[4]!EURCAD -> 1.3072 | L8: =[4]!EURCHF -> 1.2134 | M8: =[4]!EURGBP -> 0.8469 | N8: =[4]!EURJPY -> 123.86 | O8: =[4]!GBPCAD -> 1.5405 | P8: =[4]!GBPAUD -> 1.4573 | Q8: =[4]!GBPNZD -> 1.8059 | R8: =[4]!GBPCHF -> 1.4254 | S8: =[4]!GBPJPY -> 145.94 | T8: =[4]!GBPUSD -> 1.5198 | U8: =[4]!NZDJPY -> 80.51 | V8: =[4]!NZDUSD -> 0.8373 | W8: =[4]!USDCAD -> 1.0122 | X8: =[4]!USDCHF -> 0.9312 | Y8: =[4]!USDJPY -> 95.76 | Z8: =[4]!AUDCHF -> 0.9659 | AA8: =[4]!EURUSD -> 1.2899 | AB8: =[4]!EURNZD -> 1.5323 | AC8: =[4]!NZDCAD -> 0.849 | AD8: =[4]!NZDCHF -> 0.782
A10: 12w | B10: Volatilita | C10: 69.7 | D10: 85.5 | E10: 71.5 | F10: 108.8 | G10: 76.8 | H10: 69 | I10: 88 | J10: 104.8 | K10: 98.7 | L10: 40.7 | M10: 58.7 | N10: 105.5 | O10: 114 | P10: 132.8 | Q10: 181.3 | R10: 111.9 | S10: 104.3 | T10: 116.4 | U10: 68 | V10: 86.1 | W10: 76.6 | X10: 93.3 | Y10: 45.9 | Z10: 85.7 | AA10: 127 | AB10: 152.2 | AC10: 61.5 | AD10: 71.4
B11: Dnes | C11: =(C5-C8)*10000 -> 111 | D11: =(D5-D8)*100 -> 196 | E11: =(E5-E8)*10000 -> 105 | F11: 86 | G11: 185 | H11: =(H5-H8)*100 -> 235 | I11: =(I5-I8)*100 -> 290 | J11: 193 | K11: 242 | L11: 37 | M11: 47 | N11: =(N5-N8)*100 -> 345 | O11: 269 | P11: 219 | Q11: 203 | R11: 89 | S11: =(S5-S8)*100 -> 407 | T11: 165 | U11: =(U5-U8)*100 -> 193 | V11: 65 | W11: 114 | X11: 123 | Y11: =(Y5-Y8)*100 -> 208 | Z11: 166 | AA11: 140 | AB11: 187 | AC11: 99 | AD11: 104
C12: =1/(C10/C11) -> 1.592539455 | D12: =1/(D10/D11) -> 2.292397661 | E12: 1.468531469 | F12: 0.7904411765 | G12: 2.408854167 | H12: 3.405797101 | I12: 3.295454545 | J12: 1.841603053 | K12: 2.451874367 | L12: 0.9090909091 | M12: 0.800681431 | N12: 3.27014218 | O12: 2.359649123 | P12: 1.649096386 | Q12: 1.11969112 | R12: 0.7953529937 | S12: 3.902205177 | T12: 1.417525773 | U12: 2.838235294 | V12: 0.7549361208 | W12: 1.488250653 | X12: 1.318327974 | Y12: 4.531590414 | Z12: 1.936989498 | AA12: 1.102362205 | AB12: 1.228646518 | AC12: 1.609756098 | AD12: 1.456582633
C16: Priemer: | D16: =SUM(C12:AD12)/28 -> 1.929878768 | F16: MIN: | G16: =MIN(C12:AD12) -> 0.7549361208 | I16: MAX: | J16: =MAX(C12:AD12) -> 4.531590414
B22: AUD | D22: AUDCAD | E22: AUDJPY | F22: AUDNZD | G22: AUDUSD | H22: EURAUD | I22: GBPAUD | J22: AUDCHF | M22: CAD | O22: AUDCAD | P22: CADCHF | Q22: CADJPY | R22: EURCAD | S22: GBPCAD | T22: USDCAD | U22: NZDCAD
C23: High | D23: =[1]!AUDCAD -> 1.0644 | E23: =[1]!AUDJPY -> 101.74 | F23: =[1]!AUDNZD -> 1.2401 | G23: =[1]!AUDUSD -> 1.044 | H23: =[1]!EURAUD -> 1.256 | I23: =[1]!GBPAUD -> 1.4792 | J23: =[1]!AUDCHF -> 0.9825 | N23: High | O23: =[1]!AUDCAD -> 1.0644 | P23: =[1]!CADCHF -> 0.9301 | Q23: =[1]!CADJPY -> 96.24 | R23: =[1]!EURCAD -> 1.3314 | S23: =[1]!GBPCAD -> 1.5674 | T23: =[1]!USDCAD -> 1.0236 | U23: =[1]!NZDCAD -> 0.8589
A24: Priemer | B24: =SUM(D30:J30)/7 -> 1.653085528 | C24: Ask | D24: =[2]!AUDCAD -> 1.0571 | E24: =[2]!AUDJPY -> 101.29 | F24: =[2]!AUDNZD -> 1.233 | G24: =[2]!AUDUSD -> 1.0385 | H24: =[2]!EURAUD -> 1.2519 | I24: =[2]!GBPAUD -> 1.4778 | J24: =[2]!AUDCHF -> 0.9709 | L24: Priemer | M24: =SUM(O30:U30)/7 -> 2.188102995 | N24: Ask | O24: =[2]!AUDCAD -> 1.0571 | P24: =[2]!CADCHF -> 0.9187 | Q24: =[2]!CADJPY -> 95.92 | R24: =[2]!EURCAD -> 1.3231 | S24: =[2]!GBPCAD -> 1.5614 | T24: =[2]!USDCAD -> 1.0178 | U24: =[2]!NZDCAD -> 0.8587
C25: Bid | D25: =[3]!AUDCAD -> 1.0562 | E25: =[3]!AUDJPY -> 101.25 | F25: =[3]!AUDNZD -> 1.2301 | G25: =[3]!AUDUSD -> 1.0382 | H25: =[3]!EURAUD -> 1.2508 | I25: =[3]!GBPAUD -> 1.4759 | J25: =[3]!AUDCHF -> 0.9695 | N25: Bid | O25: =[3]!AUDCAD -> 1.0562 | P25: =[3]!CADCHF -> 0.918 | Q25: =[3]!CADJPY -> 95.83 | R25: =[3]!EURCAD -> 1.3222 | S25: =[3]!GBPCAD -> 1.56 | T25: =[3]!USDCAD -> 1.0175 | U25: =[3]!NZDCAD -> 0.8573
A26: Min | B26: =MIN(D30:J30) -> 0.7904411765 | C26: Low | D26: =[4]!AUDCAD -> 1.0533 | E26: =[4]!AUDJPY -> 99.78 | F26: =[4]!AUDNZD -> 1.2296 | G26: =[4]!AUDUSD -> 1.0354 | H26: =[4]!EURAUD -> 1.2367 | I26: =[4]!GBPAUD -> 1.4573 | J26: =[4]!AUDCHF -> 0.9659 | L26: Min | M26: =MIN(O30:U30) -> 1.488250653 | N26: Low | O26: =[4]!AUDCAD -> 1.0533 | P26: =[4]!CADCHF -> 0.9116 | Q26: =[4]!CADJPY -> 93.89 | R26: =[4]!EURCAD -> 1.3072 | S26: =[4]!GBPCAD -> 1.5405 | T26: =[4]!USDCAD -> 1.0122 | U26: =[4]!NZDCAD -> 0.849
A28: Max | B28: =MAX(D30:J30) -> 2.292397661 | C28: Volatilita | D28: 69.7 | E28: 85.5 | F28: 71.5 | G28: 108.8 | H28: 104.8 | I28: 132.8 | J28: 85.7 | L28: Max | M28: =MAX(O30:U30) -> 3.405797101 | N28: Volatilita | O28: 69.7 | P28: 76.8 | Q28: 69 | R28: 98.7 | S28: 114 | T28: 76.6 | U28: 61.5
C29: Dnes | D29: =(D23-D26)*10000 -> 111 | E29: =(E23-E26)*100 -> 196 | F29: =(F23-F26)*10000 -> 105 | G29: =(G23-G26)*10000 -> 86 | H29: =(H23-H26)*10000 -> 193 | I29: =(I23-I26)*10000 -> 219 | J29: =(J23-J26)*10000 -> 166 | N29: Dnes | O29: =(O23-O26)*10000 -> 111 | P29: =(P23-P26)*10000 -> 185 | Q29: =(Q23-Q26)*100 -> 235 | R29: =(R23-R26)*10000 -> 242 | S29: =(S23-S26)*10000 -> 269 | T29: =(T23-T26)*10000 -> 114 | U29: =(U23-U26)*10000 -> 99
D30: =1/(D28/D29) -> 1.592539455 | E30: =1/(E28/E29) -> 2.292397661 | F30: 1.468531469 | G30: 0.7904411765 | H30: 1.841603053 | I30: 1.649096386 | J30: 1.936989498 | O30: =1/(O28/O29) -> 1.592539455 | P30: =1/(P28/P29) -> 2.408854167 | Q30: 3.405797101 | R30: 2.451874367 | S30: 2.359649123 | T30: 1.488250653 | U30: 1.609756098
B34: EUR | D34: EURAUD | E34: EURCAD | F34: EURCHF | G34: EURGBP | H34: EURJPY | I34: EURUSD | J34: EURNZD | M34: GBP | O34: EURGBP | P34: GBPCAD | Q34: GBPAUD | R34: GBPNZD | S34: GBPCHF | T34: GBPJPY | U34: GBPUSD
C35: High | D35: =[1]!EURAUD -> 1.256 | E35: =[1]!EURCAD -> 1.3314 | F35: =[1]!EURCHF -> 1.2171 | G35: =[1]!EURGBP -> 0.8516 | H35: =[1]!EURJPY -> 127.31 | I35: =[1]!EURUSD -> 1.3039 | J35: =[1]!EURNZD -> 1.551 | N35: High | O35: =[1]!EURGBP -> 0.8516 | P35: =[1]!GBPCAD -> 1.5674 | Q35: =[1]!GBPAUD -> 1.4792 | R35: =[1]!GBPNZD -> 1.8262 | S35: =[1]!GBPCHF -> 1.4343 | T35: =[1]!GBPJPY -> 150.01 | U35: =[1]!GBPUSD -> 1.5363
A36: Priemer | B36: =SUM(D42:J42)/7 -> 1.657771523 | C36: Ask | D36: =[2]!EURAUD -> 1.2519 | E36: =[2]!EURCAD -> 1.3231 | F36: =[2]!EURCHF -> 1.2145 | G36: =[2]!EURGBP -> 0.8476 | H36: =[2]!EURJPY -> 126.81 | I36: =[2]!EURUSD -> 1.2995 | J36: =[2]!EURNZD -> 1.5423 | L36: Priemer | M36: =SUM(O42:U42)/7 -> 1.720600286 | N36: Ask | O36: =[2]!EURGBP -> 0.8476 | P36: =[2]!GBPCAD -> 1.5614 | Q36: =[2]!GBPAUD -> 1.4778 | R36: =[2]!GBPNZD -> 1.8207 | S36: =[2]!GBPCHF -> 1.4332 | T36: =[2]!GBPJPY -> 149.67 | U36: =[2]!GBPUSD -> 1.5338
C37: Bid | D37: =[3]!EURAUD -> 1.2508 | E37: =[3]!EURCAD -> 1.3222 | F37: =[3]!EURCHF -> 1.2141 | G37: =[3]!EURGBP -> 0.8473 | H37: =[3]!EURJPY -> 126.78 | I37: =[3]!EURUSD -> 1.2992 | J37: =[3]!EURNZD -> 1.5399 | N37: Bid | O37: =[3]!EURGBP -> 0.8473 | P37: =[3]!GBPCAD -> 1.56 | Q37: =[3]!GBPAUD -> 1.4759 | R37: =[3]!GBPNZD -> 1.8173 | S37: =[3]!GBPCHF -> 1.4325 | T37: =[3]!GBPJPY -> 149.6 | U37: =[3]!GBPUSD -> 1.5335
A38: Min | B38: =MIN(D42:J42) -> 0.800681431 | C38: Low | D38: =[4]!EURAUD -> 1.2367 | E38: =[4]!EURCAD -> 1.3072 | F38: =[4]!EURCHF -> 1.2134 | G38: =[4]!EURGBP -> 0.8469 | H38: =[4]!EURJPY -> 123.86 | I38: =[4]!EURUSD -> 1.2899 | J38: =[4]!EURNZD -> 1.5323 | L38: Min | M38: =MIN(O42:U42) -> 0.7953529937 | N38: Low | O38: =[4]!EURGBP -> 0.8469 | P38: =[4]!GBPCAD -> 1.5405 | Q38: =[4]!GBPAUD -> 1.4573 | R38: =[4]!GBPNZD -> 1.8059 | S38: =[4]!GBPCHF -> 1.4254 | T38: =[4]!GBPJPY -> 145.94 | U38: =[4]!GBPUSD -> 1.5198
A40: Max | B40: =MAX(D42:J42) -> 3.27014218 | C40: Volatilita | D40: 104.8 | E40: 98.7 | F40: 40.7 | G40: 58.7 | H40: 105.5 | I40: 127 | J40: 152.2 | L40: Max | M40: =MAX(O42:U42) -> 3.902205177 | N40: Volatilita | O40: 58.7 | P40: 114 | Q40: 132.8 | R40: 181.3 | S40: 111.9 | T40: 104.3 | U40: 116.4
C41: Dnes | D41: =(D35-D38)*10000 -> 193 | E41: =(E35-E38)*10000 -> 242 | F41: =(F35-F38)*10000 -> 37 | G41: =(G35-G38)*10000 -> 47 | H41: =(H35-H38)*100 -> 345 | I41: =(I35-I38)*10000 -> 140 | J41: =(J35-J38)*10000 -> 187 | N41: Dnes | O41: =(O35-O38)*10000 -> 47 | P41: =(P35-P38)*10000 -> 269 | Q41: =(Q35-Q38)*10000 -> 219 | R41: =(R35-R38)*10000 -> 203 | S41: =(S35-S38)*10000 -> 89 | T41: =(T35-T38)*100 -> 407 | U41: =(U35-U38)*10000 -> 165
D42: =1/(D40/D41) -> 1.841603053 | E42: 2.451874367 | F42: 0.9090909091 | G42: 0.800681431 | H42: 3.27014218 | I42: 1.102362205 | J42: 1.228646518 | O42: =1/(O40/O41) -> 0.800681431 | P42: 2.359649123 | Q42: 1.649096386 | R42: 1.11969112 | S42: 0.7953529937 | T42: 3.902205177 | U42: 1.417525773
B46: CHF | D46: CADCHF | E46: CHFJPY | F46: EURCHF | G46: GBPCHF | H46: USDCHF | I46: AUDCHF | J46: NZDCHF | M46: JPY | O46: AUDJPY | P46: CADJPY | Q46: CHFJPY | R46: EURJPY | S46: GBPJPY | T46: NZDJPY | U46: USDJPY
C47: High | D47: =[1]!CADCHF -> 0.9301 | E47: =[1]!CHFJPY -> 104.82 | F47: =[1]!EURCHF -> 1.2171 | G47: =[1]!GBPCHF -> 1.4343 | H47: =[1]!USDCHF -> 0.9435 | I47: =[1]!AUDCHF -> 0.9825 | J47: =[1]!NZDCHF -> 0.7924 | N47: High | O47: =[1]!AUDJPY -> 101.74 | P47: =[1]!CADJPY -> 96.24 | Q47: =[1]!CHFJPY -> 104.82 | R47: =[1]!EURJPY -> 127.31 | S47: =[1]!GBPJPY -> 150.01 | T47: =[1]!NZDJPY -> 82.44 | U47: =[1]!USDJPY -> 97.84
A48: Priemer | B48: =SUM(D54:J54)/7 -> 1.731521817 | C48: Ask | D48: =[2]!CADCHF -> 0.9187 | E48: =[2]!CHFJPY -> 104.42 | F48: =[2]!EURCHF -> 1.2145 | G48: =[2]!GBPCHF -> 1.4332 | H48: =[2]!USDCHF -> 0.9351 | I48: =[2]!AUDCHF -> 0.9709 | J48: =[2]!NZDCHF -> 0.7889 | L48: Priemer | M48: =SUM(O54:U54)/7 -> 3.362260339 | N48: Ask | O48: =[2]!AUDJPY -> 101.29 | P48: =[2]!CADJPY -> 95.92 | Q48: =[2]!CHFJPY -> 104.42 | R48: =[2]!EURJPY -> 126.81 | S48: =[2]!GBPJPY -> 149.67 | T48: =[2]!NZDJPY -> 82.32 | U48: =[2]!USDJPY -> 97.57
C49: Bid | D49: =[3]!CADCHF -> 0.918 | E49: =[3]!CHFJPY -> 104.37 | F49: =[3]!EURCHF -> 1.2141 | G49: =[3]!GBPCHF -> 1.4325 | H49: =[3]!USDCHF -> 0.9348 | I49: =[3]!AUDCHF -> 0.9695 | J49: =[3]!NZDCHF -> 0.787 | N49: Bid | O49: =[3]!AUDJPY -> 101.25 | P49: =[3]!CADJPY -> 95.83 | Q49: =[3]!CHFJPY -> 104.37 | R49: =[3]!EURJPY -> 126.78 | S49: =[3]!GBPJPY -> 149.6 | T49: =[3]!NZDJPY -> 82.18 | U49: =[3]!USDJPY -> 97.54
A50: Min | B50: =MIN(D54:J54) -> 0.7953529937 | C50: Low | D50: =[4]!CADCHF -> 0.9116 | E50: =[4]!CHFJPY -> 101.92 | F50: =[4]!EURCHF -> 1.2134 | G50: =[4]!GBPCHF -> 1.4254 | H50: =[4]!USDCHF -> 0.9312 | I50: =[4]!AUDCHF -> 0.9659 | J50: =[4]!NZDCHF -> 0.782 | L50: Min | M50: =MIN(O54:U54) -> 2.292397661 | N50: Low | O50: =[4]!AUDJPY -> 99.78 | P50: =[4]!CADJPY -> 93.89 | Q50: =[4]!CHFJPY -> 101.92 | R50: =[4]!EURJPY -> 123.86 | S50: =[4]!GBPJPY -> 145.94 | T50: =[4]!NZDJPY -> 80.51 | U50: =[4]!USDJPY -> 95.76
A52: Max | B52: =MAX(D54:J54) -> 3.295454545 | C52: Volatilita | D52: 76.8 | E52: 88 | F52: 40.7 | G52: 111.9 | H52: 93.3 | I52: 85.7 | J52: 71.4 | L52: Max | M52: =MAX(O54:U54) -> 4.531590414 | N52: Volatilita | O52: 85.5 | P52: 69 | Q52: 88 | R52: 105.5 | S52: 104.3 | T52: 68 | U52: 45.9
C53: Dnes | D53: =(D47-D50)*10000 -> 185 | E53: =(E47-E50)*100 -> 290 | F53: =(F47-F50)*10000 -> 37 | G53: =(G47-G50)*10000 -> 89 | H53: =(H47-H50)*10000 -> 123 | I53: =(I47-I50)*10000 -> 166 | J53: =(J47-J50)*10000 -> 104 | N53: Dnes | O53: =(O47-O50)*100 -> 196 | P53: 235 | Q53: 290 | R53: 345 | S53: 407 | T53: 193 | U53: 208
D54: =1/(D52/D53) -> 2.408854167 | E54: 3.295454545 | F54: 0.9090909091 | G54: 0.7953529937 | H54: 1.318327974 | I54: 1.936989498 | J54: 1.456582633 | O54: =1/(O52/O53) -> 2.292397661 | P54: 3.405797101 | Q54: 3.295454545 | R54: 3.27014218 | S54: 3.902205177 | T54: 2.838235294 | U54: 4.531590414
B58: NZD | D58: GBPNZD | E58: NZDJPY | F58: NZDUSD | G58: EURNZD | H58: NZDCAD | I58: NZDCHF | J58: AUDNZD | M58: USD | O58: AUDUSD | P58: GBPUSD | Q58: NZDUSD | R58: USDCAD | S58: USDCHF | T58: USDJPY | U58: EURUSD
C59: High | D59: =[1]!GBPNZD -> 1.8262 | E59: =[1]!NZDJPY -> 82.44 | F59: =[1]!NZDUSD -> 0.8438 | G59: =[1]!EURNZD -> 1.551 | H59: =[1]!NZDCAD -> 0.8589 | I59: =[1]!NZDCHF -> 0.7924 | J59: =[1]!AUDNZD -> 1.2401 | N59: High | O59: =[1]!AUDUSD -> 1.044 | P59: =[1]!GBPUSD -> 1.5363 | Q59: =[1]!NZDUSD -> 0.8438 | R59: =[1]!USDCAD -> 1.0236 | S59: =[1]!USDCHF -> 0.9435 | T59: =[1]!USDJPY -> 97.84 | U59: =[1]!EURUSD -> 1.3039
A60: Priemer | B60: =SUM(D66:J66)/7 -> 1.496625607 | C60: Ask | D60: =[2]!GBPNZD -> 1.8207 | E60: =[2]!NZDJPY -> 82.32 | F60: =[2]!NZDUSD -> 0.8434 | G60: =[2]!EURNZD -> 1.5423 | H60: =[2]!NZDCAD -> 0.8587 | I60: =[2]!NZDCHF -> 0.7889 | J60: =[2]!AUDNZD -> 1.233 | L60: Priemer | M60: =SUM(O66:U66)/7 -> 1.629062045 | N60: Ask | O60: =[2]!AUDUSD -> 1.0385 | P60: =[2]!GBPUSD -> 1.5338 | Q60: =[2]!NZDUSD -> 0.8434 | R60: =[2]!USDCAD -> 1.0178 | S60: =[2]!USDCHF -> 0.9351 | T60: =[2]!USDJPY -> 97.57 | U60: =[2]!EURUSD -> 1.2995
C61: Bid | D61: =[3]!GBPNZD -> 1.8173 | E61: =[3]!NZDJPY -> 82.18 | F61: =[3]!NZDUSD -> 0.8431 | G61: =[3]!EURNZD -> 1.5399 | H61: =[3]!NZDCAD -> 0.8573 | I61: =[3]!NZDCHF -> 0.787 | J61: =[3]!AUDNZD -> 1.2301 | N61: Bid | O61: =[3]!AUDUSD -> 1.0382 | P61: =[3]!GBPUSD -> 1.5335 | Q61: =[3]!NZDUSD -> 0.8431 | R61: =[3]!USDCAD -> 1.0175 | S61: =[3]!USDCHF -> 0.9348 | T61: =[3]!USDJPY -> 97.54 | U61: =[3]!EURUSD -> 1.2992
A62: Min | B62: =MIN(D66:J66) -> 0.7549361208 | C62: Low | D62: =[4]!GBPNZD -> 1.8059 | E62: =[4]!NZDJPY -> 80.51 | F62: =[4]!NZDUSD -> 0.8373 | G62: =[4]!EURNZD -> 1.5323 | H62: =[4]!NZDCAD -> 0.849 | I62: =[4]!NZDCHF -> 0.782 | J62: =[4]!AUDNZD -> 1.2296 | L62: Min | M62: =MIN(O66:U66) -> 0.7549361208 | N62: Low | O62: =[4]!AUDUSD -> 1.0354 | P62: =[4]!GBPUSD -> 1.5198 | Q62: =[4]!NZDUSD -> 0.8373 | R62: =[4]!USDCAD -> 1.0122 | S62: =[4]!USDCHF -> 0.9312 | T62: =[4]!USDJPY -> 95.76 | U62: =[4]!EURUSD -> 1.2899
A64: Max | B64: =MAX(D66:J66) -> 2.838235294 | C64: Volatilita | D64: 181.3 | E64: 68 | F64: 86.1 | G64: 152.2 | H64: 61.5 | I64: 71.4 | J64: 71.5 | L64: Max | M64: =MAX(O66:U66) -> 4.531590414 | N64: Volatilita | O64: 108.8 | P64: 116.4 | Q64: 86.1 | R64: 76.6 | S64: 93.3 | T64: 45.9 | U64: 127
C65: Dnes | D65: =(D59-D62)*10000 -> 203 | E65: =(E59-E62)*100 -> 193 | F65: =(F59-F62)*10000 -> 65 | G65: =(G59-G62)*10000 -> 187 | H65: =(H59-H62)*10000 -> 99 | I65: =(I59-I62)*10000 -> 104 | J65: =(J59-J62)*10000 -> 105 | N65: Dnes | O65: =(O59-O62)*10000 -> 86 | P65: =(P59-P62)*10000 -> 165 | Q65: =(Q59-Q62)*10000 -> 65 | R65: =(R59-R62)*10000 -> 114 | S65: =(S59-S62)*10000 -> 123 | T65: =(T59-T62)*100 -> 208 | U65: =(U59-U62)*10000 -> 140
D66: =1/(D64/D65) -> 1.11969112 | E66: 2.838235294 | F66: 0.7549361208 | G66: 1.228646518 | H66: 1.609756098 | I66: 1.456582633 | J66: 1.468531469 | O66: =1/(O64/O65) -> 0.7904411765 | P66: 1.417525773 | Q66: 0.7549361208 | R66: 1.488250653 | S66: 1.318327974 | T66: 4.531590414 | U66: 1.102362205

Sheet Poriadok
A2: 29/2/2012 | C2: aud | D2: CADAUD | E2: JPYAUD | F2: NZDAUD | G2: USDAUD | H2: EURAUD | I2: GBPAUD | J2: CHFAUD | N2: cad | O2: AUDCAD | P2: CHFCAD | Q2: JPYCAD | R2: EURCAD | S2: GBPCAD | T2: USDCAD | U2: NZDCAD
A3: 20:00:00 | D3: =0.9676 -> 0.9676 | E3: =0.98723 -> 0.98723 | F3: =0.7856 -> 0.7856 | G3: =0.9624 -> 0.9624 | H3: 1.2801 | I3: 1.4528 | J3: =1.044 -> 1.044 | O3: 1.0146 | P3: =1.0986 -> 1.0986 | Q3: =1.09649 -> 1.09649 | R3: 1.3325 | S3: 1.5429 | T3: 1.0255 | U3: 0.8546
C5: eur | D5: AUDEUR | E5: CADEUR | F5: CHFEUR | G5: GBPEUR | H5: JPYEUR | I5: USDEUR | J5: NZDEUR | N5: gbp | O5: EURGBP | P5: CADGBP | Q5: AUDGBP | R5: NZDGBP | S5: CHFGBP | T5: JPYGBP | U5: USDGBP
D6: =0.773 -> 0.773 | E6: =0.7378 -> 0.7378 | F6: =0.8218 -> 0.8218 | G6: 1.1405 | H6: =0.8284 -> 0.8284 | I6: =0.7434 -> 0.7434 | J6: 0.628 | O6: 0.868 | P6: =0.6238 -> 0.6238 | Q6: =0.6891 -> 0.6891 | R6: =0.5087 -> 0.5087 | S6: =0.6591 -> 0.6591 | T6: =0.6982 -> 0.6982 | U6: =0.6525 -> 0.6525
C8: chf | D8: CADCHF | E8: JPYCHF | F8: EURCHF | G8: GBPCHF | H8: USDCHF | I8: AUDCHF | J8: NZDCHF | N8: jpy | O8: AUDJPY | P8: CADJPY | Q8: CHFJPY | R8: EURJPY | S8: GBPJPY | T8: NZDJPY | U8: USDJPY
D9: 0.9529 | E9: =0.98 -> 0.98 | F9: 1.2471 | G9: 1.4465 | H9: 0.9469 | I9: 0.993 | J9: 0.7492 | O9: 0.9704 | P9: 0.9239 | Q9: 1.0083 | R9: 1.2487 | S9: 1.4681 | T9: 0.8019 | U9: 0.9365
C11: nzd | D11: GBPNZD | E11: JPYNZD | F11: USDNZD | G11: EURNZD | H11: CADNZD | I11: CHFNZD | J11: AUDNZD | N11: usd | O11: AUDUSD | P11: GBPUSD | Q11: NZDUSD | R11: CADUSD | S11: CHFUSD | T11: JPYUSD | U11: EURUSD
D12: 1.7942 | E12: 1.2631 | F12: =1.1907 -> 1.1907 | G12: 1.5555 | H12: 1.1863 | I12: =1.2568 -> 1.2568 | J12: 1.2685 | O12: 1.0173 | P12: 1.5302 | Q12: 0.8095 | R12: =0.9774 -> 0.9774 | S12: =1.0861 -> 1.0861 | T12: =1.037 -> 1.037 | U12: 1.3027
A16: Aktuálny kurz | B16: AUD | D16: CADAUD | E16: JPYAUD | F16: NZDAUD | G16: USDAUD | H16: EURAUD | I16: GBPAUD | J16: CHFAUD | K16: pv | M16: CAD | O16: AUDCAD | P16: CHFCAD | Q16: JPYCAD | R16: EURCAD | S16: GBPCAD | T16: USDCAD | U16: NZDCAD | V16: pv
C17: Ask | D17: =1/[2]!AUDCAD -> 0.9459842967 | E17: =1/[2]!AUDJPY*100 -> 0.9872642907 | F17: =1/[2]!AUDNZD -> 0.8110300081 | G17: =1/[2]!AUDUSD -> 0.962927299 | H17: =[2]!EURAUD -> 1.2519 | I17: =[2]!GBPAUD -> 1.4778 | J17: =1/[2]!AUDCHF -> 1.029972191 | K17: =(0.0001/G19)*10000 -> 1.038349978 | N17: Ask | O17: =[2]!AUDCAD -> 1.0571 | P17: =1/[2]!CADCHF -> 1.088494612 | Q17: =1/[2]!CADJPY*100 -> 1.042535446 | R17: =[2]!EURCAD -> 1.3231 | S17: =[2]!GBPCAD -> 1.5614 | T17: =[2]!USDCAD -> 1.0178 | U17: =[2]!NZDCAD -> 0.8587 | V17: =(0.0001/T19)*10000 -> 0.9826561195
C18: Bid | D18: =1/[3]!AUDCAD -> 0.9467903806 | E18: =1/[3]!AUDJPY*100 -> 0.987654321 | F18: =1/[3]!AUDNZD -> 0.8129420372 | G18: =1/[3]!AUDUSD -> 0.9632055481 | H18: =[3]!EURAUD -> 1.2508 | I18: =[3]!GBPAUD -> 1.4759 | J18: =1/[3]!AUDCHF -> 1.031459515 | N18: Bid | O18: =[3]!AUDCAD -> 1.0562 | P18: =1/[3]!CADCHF -> 1.089324619 | Q18: =1/[3]!CADJPY*100 -> 1.043514557 | R18: =[3]!EURCAD -> 1.3222 | S18: =[3]!GBPCAD -> 1.56 | T18: =[3]!USDCAD -> 1.0175 | U18: =[3]!NZDCAD -> 0.8573
C19: Priemer | D19: =(D17+D18)/2 -> 0.9463873386 | E19: =(E17+E18)/2 -> 0.9874593058 | F19: 0.8119860227 | G19: 0.9630664235 | H19: 1.25135 | I19: 1.47685 | J19: 1.030715853 | N19: Priemer | O19: =(O17+O18)/2 -> 1.05665 | P19: =(P17+P18)/2 -> 1.088909615 | Q19: 1.043025002 | R19: 1.32265 | S19: 1.5607 | T19: 1.01765 | U19: 0.858
C20: spread | D20: =ABS(D17-D18)*10000 -> 8.060839491 | E20: =ABS(E17-E18)*10000 -> 3.90030337 | F20: 19.12029122 | G20: 2.78249075 | H20: 11 | I20: 19 | J20: 14.87324463 | K20: =SUM(D20:J20) -> 78.73716947 | N20: spread | O20: =ABS(O17-O18)*10000 -> 9 | P20: =ABS(P17-P18)*10000 -> 8.300067847 | Q20: 9.791108229 | R20: 9 | S20: 14 | T20: 3 | U20: 14 | V20: =SUM(O20:U20) -> 67.09117608
B22: EUR | D22: AUDEUR | E22: CADEUR | F22: CHFEUR | G22: GBPEUR | H22: JPYEUR | I22: USDEUR | J22: NZDEUR | K22: pv | M22: GBP | O22: EURGBP | P22: CADGBP | Q22: AUDGBP | R22: NZDGBP | S22: CHFGBP | T22: JPYGBP | U22: USDGBP | V22: pv
C23: Ask | D23: =1/[2]!EURAUD -> 0.7987858455 | E23: =1/[2]!EURCAD -> 0.7558007709 | F23: =1/[2]!EURCHF -> 0.8233841087 | G23: =1/[2]!EURGBP -> 1.179801793 | H23: =1/[2]!EURJPY*100 -> 0.7885813422 | I23: =1/[2]!EURUSD -> 0.7695267411 | J23: =1/[2]!EURNZD -> 0.6483822862 | K23: =(0.0001/I25)*10000 -> 1.299349983 | N23: Ask | O23: =[2]!EURGBP -> 0.8476 | P23: =1/[2]!GBPCAD -> 0.6404508774 | Q23: =1/[2]!GBPAUD -> 0.6766815537 | R23: =1/[2]!GBPNZD -> 0.5492393036 | S23: =1/[2]!GBPCHF -> 0.6977393246 | T23: =1/[2]!GBPJPY*100 -> 0.6681365671 | U23: =1/[2]!GBPUSD -> 0.6519754857 | V23: =(0.0001/U25)*10000 -> 1.533649985
C24: Bid | D24: =1/[3]!EURAUD -> 0.7994883275 | E24: =1/[3]!EURCAD -> 0.7563152322 | F24: =1/[3]!EURCHF -> 0.8236553826 | G24: =1/[3]!EURGBP -> 1.180219521 | H24: =1/[3]!EURJPY*100 -> 0.7887679445 | I24: =1/[3]!EURUSD -> 0.7697044335 | J24: =1/[3]!EURNZD -> 0.6493928177 | N24: Bid | O24: =[3]!EURGBP -> 0.8473 | P24: =1/[3]!GBPCAD -> 0.641025641 | Q24: =1/[3]!GBPAUD -> 0.6775526797 | R24: =1/[3]!GBPNZD -> 0.5502668794 | S24: =1/[3]!GBPCHF -> 0.6980802792 | T24: =1/[3]!GBPJPY*100 -> 0.6684491979 | U24: =1/[3]!GBPUSD -> 0.6521030323
C25: Priemer | D25: =(D23+D24)/2 -> 0.7991370865 | E25: =(E23+E24)/2 -> 0.7560580016 | F25: 0.8235197456 | G25: 1.180010657 | H25: 0.7886746433 | I25: 0.7696155873 | J25: 0.648887552 | N25: Priemer | O25: =(O23+O24)/2 -> 0.84745 | P25: =(P23+P24)/2 -> 0.6407382592 | Q25: 0.6771171167 | R25: 0.5497530915 | S25: 0.6979098019 | T25: 0.6682928825 | U25: 0.652039259
C26: spread | D26: =ABS(D23-D24)*10000 -> 7.024819556 | E26: =ABS(E23-E24)*10000 -> 5.14461272 | F26: 2.712739012 | G26: 4.177275321 | H26: 1.866023053 | I26: 1.776924433 | J26: 10.10531519 | K26: =SUM(D26:J26) -> 32.80770929 | N26: spread | O26: =ABS(O23-O24)*10000 -> 3 | P26: =ABS(P23-P24)*10000 -> 5.747636079 | Q26: 8.7112606 | R26: 10.27575872 | S26: 3.409546438 | T26: 3.126307466 | U26: 1.275465574 | V26: =SUM(O26:U26) -> 35.54597488
B28: CHF | D28: CADCHF | E28: JPYCHF | F28: EURCHF | G28: GBPCHF | H28: USDCHF | I28: AUDCHF | J28: NZDCHF | K28: pv | M28: JPY | O28: AUDJPY | P28: CADJPY | Q28: CHFJPY | R28: EURJPY | S28: GBPJPY | T28: NZDJPY | U28: USDJPY | V28: pv
C29: Ask | D29: =[2]!CADCHF -> 0.9187 | E29: =1/[2]!CHFJPY*100 -> 0.9576709443 | F29: =[2]!EURCHF -> 1.2145 | G29: =[2]!GBPCHF -> 1.4332 | H29: =[2]!USDCHF -> 0.9351 | I29: =[2]!AUDCHF -> 0.9709 | J29: =[2]!NZDCHF -> 0.7889 | K29: =(0.0001/H31)*10000 -> 1.069575913 | N29: Ask | O29: =[2]!AUDJPY/100 -> 1.0129 | P29: =[2]!CADJPY/100 -> 0.9592 | Q29: =[2]!CHFJPY/100 -> 1.0442 | R29: =[2]!EURJPY/100 -> 1.2681 | S29: =[2]!GBPJPY/100 -> 1.4967 | T29: =[2]!NZDJPY/100 -> 0.8232 | U29: =[2]!USDJPY/100 -> 0.9757 | V29: =(0.0001/U31)*10000 -> 1.025062785
C30: Bid | D30: =[3]!CADCHF -> 0.918 | E30: =1/[3]!CHFJPY*100 -> 0.9581297308 | F30: =[3]!EURCHF -> 1.2141 | G30: =[3]!GBPCHF -> 1.4325 | H30: =[3]!USDCHF -> 0.9348 | I30: =[3]!AUDCHF -> 0.9695 | J30: =[3]!NZDCHF -> 0.787 | N30: Bid | O30: =[3]!AUDJPY/100 -> 1.0125 | P30: =[3]!CADJPY/100 -> 0.9583 | Q30: =[3]!CHFJPY/100 -> 1.0437 | R30: =[3]!EURJPY/100 -> 1.2678 | S30: =[3]!GBPJPY/100 -> 1.496 | T30: =[3]!NZDJPY/100 -> 0.8218 | U30: =[3]!USDJPY/100 -> 0.9754
C31: Priemer | D31: =(D29+D30)/2 -> 0.91835 | E31: =(E29+E30)/2 -> 0.9579003375 | F31: 1.2143 | G31: 1.43285 | H31: 0.93495 | I31: 0.9702 | J31: 0.78795 | N31: Priemer | O31: =(O29+O30)/2 -> 1.0127 | P31: =(P29+P30)/2 -> 0.95875 | Q31: 1.04395 | R31: 1.26795 | S31: 1.49635 | T31: 0.8225 | U31: 0.97555
C32: spread | D32: =ABS(D29-D30)*10000 -> 7 | E32: =ABS(E29-E30)*10000 -> 4.58786502 | F32: 4 | G32: 7 | H32: 3 | I32: 14 | J32: 19 | K32: =SUM(D32:J32) -> 58.58786502 | N32: spread | O32: =ABS(O29-O30)*10000 -> 4 | P32: =ABS(P29-P30)*10000 -> 9 | Q32: 5 | R32: 3 | S32: 7 | T32: 14 | U32: 3 | V32: =SUM(O32:U32) -> 45
B34: NZD | D34: GBPNZD | E34: JPYNZD | F34: USDNZD | G34: EURNZD | H34: CADNZD | I34: CHFNZD | J34: AUDNZD | K34: pv | M34: USD | O34: AUDUSD | P34: GBPUSD | Q34: NZDUSD | R34: CADUSD | S34: CHFUSD | T34: JPYUSD | U34: EURUSD | V34: pv
C35: Ask | D35: =[2]!GBPNZD -> 1.8207 | E35: =1/[2]!NZDJPY*100 -> 1.214771623 | F35: =1/[2]!NZDUSD -> 1.185677022 | G35: =[2]!EURNZD -> 1.5423 | H35: =1/[2]!NZDCAD -> 1.164551066 | I35: =1/[2]!NZDCHF -> 1.26758778 | J35: =[2]!AUDNZD -> 1.233 | K35: =(0.0001/F37)*10000 -> 0.8432499733 | N35: Ask | O35: =[2]!AUDUSD -> 1.0385 | P35: =[2]!GBPUSD -> 1.5338 | Q35: =[2]!NZDUSD -> 0.8434 | R35: =1/[2]!USDCAD -> 0.9825112989 | S35: =1/[2]!USDCHF -> 1.069404342 | T35: =1/[2]!USDJPY*100 -> 1.024905196 | U35: =[2]!EURUSD -> 1.2995 | V35: 1
C36: Bid | D36: =[3]!GBPNZD -> 1.8173 | E36: =1/[3]!NZDJPY*100 -> 1.216841081 | F36: =1/[3]!NZDUSD -> 1.186098921 | G36: =[3]!EURNZD -> 1.5399 | H36: =1/[3]!NZDCAD -> 1.166452817 | I36: =1/[3]!NZDCHF -> 1.27064803 | J36: =[3]!AUDNZD -> 1.2301 | N36: Bid | O36: =[3]!AUDUSD -> 1.0382 | P36: =[3]!GBPUSD -> 1.5335 | Q36: =[3]!NZDUSD -> 0.8431 | R36: =1/[3]!USDCAD -> 0.9828009828 | S36: =1/[3]!USDCHF -> 1.06974754 | T36: =1/[3]!USDJPY*100 -> 1.025220422 | U36: =[3]!EURUSD -> 1.2992
C37: Priemer | D37: =(D35+D36)/2 -> 1.819 | E37: =(E35+E36)/2 -> 1.215806352 | F37: 1.185887971 | G37: 1.5411 | H37: 1.165501941 | I37: 1.269117905 | J37: 1.23155 | N37: Priemer | O37: =(O35+O36)/2 -> 1.03835 | P37: =(P35+P36)/2 -> 1.53365 | Q37: 0.84325 | R37: 0.9826561408 | S37: 1.069575941 | T37: 1.025062809 | U37: 1.29935
C38: spread | D38: =ABS(D35-D36)*10000 -> 34 | E38: =ABS(E35-E36)*10000 -> 20.6945762 | F38: 4.218990707 | G38: 24 | H38: 19.01751419 | I38: 30.60250042 | J38: 29 | K38: =SUM(D38:J38) -> 161.5335815 | N38: spread | O38: =ABS(O35-O36)*10000 -> 3 | P38: =ABS(P35-P36)*10000 -> 3 | Q38: 3 | R38: 2.89683921 | S38: 3.43197799 | T38: 3.152261215 | U38: 3 | V38: =SUM(O38:U38) -> 21.48107842
A41: Rozdiely | C41: aud | D41: CADAUD | E41: JPYAUD | F41: NZDAUD | G41: USDAUD | H41: EURAUD | I41: GBPAUD | J41: CHFAUD | N41: cad | O41: AUDCAD | P41: CHFCAD | Q41: JPYCAD | R41: EURCAD | S41: GBPCAD | T41: USDCAD | U41: NZDCAD
C42: =(D42+E42+F42+G42+H42+I42+J42)*W53 -> 119.1505637 | D42: =((D19-D3))*10000 -> -212.1266136 | E42: 2.293058191 | F42: 263.8602267 | G42: 6.664235264 | H42: -287.5 | I42: 240.5 | J42: -132.8414702 | N42: =(O42+P42+Q42+R42+S42+T42+U42)*W53 -> 176.0538304 | O42: =(O19-O3)*10000 -> 420.5 | P42: -96.90384656 | Q42: -534.6499838 | R42: -98.5 | S42: 178 | T42: -78.5 | U42: =(U19-U3)*10000 -> 34
C44: eur | D44: AUDEUR | E44: CADEUR | F44: CHFEUR | G44: GBPEUR | H44: JPYEUR | I44: USDEUR | J44: NZDEUR | N44: gbp | O44: EURGBP | P44: CADGBP | Q44: AUDGBP | R44: NZDGBP | S44: CHFGBP | T44: JPYGBP | U44: USDGBP
C45: =(D45+E45+F45+G45+H45+I45+J45)*W53 -> -564.8727019 | D45: =((D25-D6))*10000 -> 261.3708649 | E45: =((E6-E25))*10000 -> -182.5800155 | F45: =((F25-F6))*10000 -> 17.19745637 | G45: =((G25-G6))*10000 -> 395.1065706 | H45: =((H25-H6))*10000 -> -397.2535668 | I45: =((I25-I6))*10000 -> 262.1558728 | J45: =((J25-J6))*10000 -> 208.8755196 | N45: =(O45+P45+Q45+R45+S45+T45+U45)*W53 -> -339.0041081 | O45: =(O25-O6)*10000 -> -205.5 | P45: 169.3825922 | Q45: -119.8288331 | R45: 410.530915 | S45: 388.0980191 | T45: -299.0711751 | U45: -4.607409996
C47: chf | D47: CADCHF | E47: JPYCHF | F47: EURCHF | G47: GBPCHF | H47: USDCHF | I47: AUDCHF | J47: NZDCHF | N47: jpy | O47: AUDJPY | P47: CADJPY | Q47: CHFJPY | R47: EURJPY | S47: GBPJPY | T47: NZDJPY | U47: USDJPY
C48: =(D48+E48+F48+G48+H48+I48+J48)*W53 -> 299.9966249 | D48: =(D9-D31)*10000 -> 345.5 | E48: =(E31-E9)*10000 -> -220.9966249 | F48: -328 | G48: -136.5 | H48: -119.5 | I48: -228 | J48: 387.5 | N48: =(O48+P48+Q48+R48+S48+T48+U48)*W53 -> -2199.5 | O48: =(O31-O9)*10000 -> 423 | P48: =(P31-P9)*10000 -> 348.5 | Q48: 356.5 | R48: 192.5 | S48: 282.5 | T48: 206 | U48: 390.5
C50: nzd | D50: GBPNZD | E50: JPYNZD | F50: USDNZD | G50: EURNZD | H50: CADNZD | I50: CHFNZD | J50: AUDNZD | N50: usd | O50: AUDUSD | P50: GBPUSD | Q50: NZDUSD | R50: CADUSD | S50: CHFUSD | T50: JPYUSD | U50: EURUSD
C51: =(D51+E51+F51+G51+H51+I51+J51)*W53 -> 871.3583039 | D51: =(D37-D12)*10000 -> 248 | E51: -472.9364826 | F51: -48.12028885 | G51: -144 | H51: -207.9805873 | I51: 123.1790547 | J51: -369.5 | N51: =(O51+P51+Q51+R51+S51+T51+U51)*W53 -> -647.4300949 | O51: =(O37-O12)*10000 -> 210.5 | P51: =(P37-P12)*10000 -> 34.5 | Q51: =(Q37-Q12)*10000 -> 337.5 | R51: =(R37-R12)*10000 -> 52.5614084 | S51: =(S12-S37)*10000 -> 165.2405932 | T51: =(T37-T12)*10000 -> -119.3719067 | U51: =(U37-U12)*10000 -> -33.5
W53: =-1 -> -1
W54: 1
C55: aud | D55: eur | E55: chf | F55: nzd | G55: cad | H55: gbp | I55: jpy | J55: usd | K55: AVG | L55: SUM | N55: aud | O55: eur | P55: chf | Q55: nzd | R55: cad | S55: gbp | T55: jpy | U55: usd
C56: =C42*K17 -> 123.7199852 | D56: =C45*K23 -> -733.9673355 | E56: =C48*K29 -> 320.869164 | F56: =C51*K35 -> 734.7728665 | G56: =N42*V17 -> 173.0003738 | H56: =N45*V23 -> -519.9136454 | I56: =N48*V29 -> -2254.625596 | J56: =N51*V35 -> -647.4300949 | K56: =(C56+D56+E56+F56+G56+H56+I56+J56)/8 -> -350.4467853 | L56: =SUM(C56:J56) -> -2803.574282 | N56: =ABS(C56) -> 123.7199852 | O56: 733.9673355 | P56: 320.869164 | Q56: 734.7728665 | R56: 173.0003738 | S56: 519.9136454 | T56: 2254.625596 | U56: 647.4300949 | V56: =SUM(N56:U56) -> 5508.299061
B57: MAX | C57: 0.2452604868 | D57: -0.1671617282 | E57: -0.1772018866 | F57: 0.003233203288 | G57: 0.1257911469 | H57: 0.1230044498 | I57: 0.2458640773 | J57: 0.125001417 | N57: =N56/$V$56 -> 0.02246065143 | O57: =O56/$V$56 -> 0.1332475465 | P57: 0.05825195045 | Q57: 0.1333937861 | R57: 0.03140722243 | S57: 0.09438733077 | T57: 0.4093143039 | U57: 0.1175372084
B58: MIN | C58: 0.01039161848 | D58: -0.2513482416 | E58: -0.2341670137 | F58: -0.03898927849 | G58: 0.0428435167 | H58: 0.02579608793 | I58: 0.06532584088 | J58: -0.164919241 | N58: =(N57/25)*100 -> 0.08984260572 | O58: =(O57/25)*100 -> 0.5329901861 | P58: 0.2330078018 | Q58: 0.5335751443 | R58: 0.1256288897 | S58: 0.3775493231 | T58: 1.637257216 | U58: 0.4701488338
C59: =IF(C56<0,N57*$W$53,N57*$W$54) -> 0.02246065143 | D59: -0.1332475465 | E59: 0.05825195045 | F59: 0.1333937861 | G59: 0.03140722243 | H59: -0.09438733077 | I59: -0.4093143039 | J59: -0.1175372084 | K59: =(C59+D59+E59+F59+G59+H59+I59+J59)/8 -> -0.06362159741
C60: =IF(C56<0,N58*$W$53,N58*$W$54) -> 0.08984260572 | D60: -0.5329901861 | E60: 0.2330078018 | F60: 0.5335751443 | G60: 0.1256288897 | H60: -0.3775493231 | I60: -1.637257216 | J60: -0.4701488338
B278: AUDCAD | C278: AUDJPY | D278: AUDNZD | E278: AUDUSD | F278: CADCHF | G278: CADJPY | H278: CHFJPY | I278: EURAUD | J278: EURCAD | K278: EURCHF | L278: EURGBP | M278: EURJPY | N278: GBPCAD | O278: GBPAUD | P278: GBPNZD | Q278: GBPCHF | R278: GBPJPY | S278: GBPUSD | T278: NZDJPY | U278: NZDUSD | V278: USDCAD | W278: USDCHF | X278: USDJPY | Y278: AUDCHF | Z278: EURUSD | AA278: EURNZD | AB278: NZDCAD | AC278: NZDCHF
B279: =C56 -> 123.7199852 | C279: =C56 -> 123.7199852 | D279: =C56 -> 123.7199852 | E279: =C56 -> 123.7199852 | F279: =E56 -> 320.869164 | G279: =G56 -> 173.0003738 | H279: =E56 -> 320.869164 | I279: =C56 -> 123.7199852 | J279: =G56 -> 173.0003738 | K279: =E56 -> 320.869164 | L279: =H56 -> -519.9136454 | M279: =I56 -> -2254.625596 | N279: =G56 -> 173.0003738 | O279: =C56 -> 123.7199852 | P279: =H56 -> -519.9136454 | Q279: =E56 -> 320.869164 | R279: =I56 -> -2254.625596 | S279: =J56 -> -647.4300949 | T279: =I56 -> -2254.625596 | U279: =J56 -> -647.4300949 | V279: =G56 -> 173.0003738 | W279: =E56 -> 320.869164 | X279: =I56 -> -2254.625596 | Y279: =C56 -> 123.7199852 | Z279: =J56 -> -647.4300949 | AA279: =F56 -> 734.7728665 | AB279: =F56 -> 734.7728665 | AC279: =E56 -> 320.869164
B280: =G56 -> 173.0003738 | C280: =I56 -> -2254.625596 | D280: =F56 -> 734.7728665 | E280: =J56 -> -647.4300949 | F280: =G56 -> 173.0003738 | G280: =I56 -> -2254.625596 | H280: =I56 -> -2254.625596 | I280: =D56 -> -733.9673355 | J280: =D56 -> -733.9673355 | K280: =D56 -> -733.9673355 | L280: =D56 -> -733.9673355 | M280: =D56 -> -733.9673355 | N280: =H56 -> -519.9136454 | O280: =H56 -> -519.9136454 | P280: =F56 -> 734.7728665 | Q280: =H56 -> -519.9136454 | R280: =H56 -> -519.9136454 | S280: =H56 -> -519.9136454 | T280: =F56 -> 734.7728665 | U280: =F56 -> 734.7728665 | V280: =J56 -> -647.4300949 | W280: =J56 -> -647.4300949 | X280: =J56 -> -647.4300949 | Y280: =E56 -> 320.869164 | Z280: =D56 -> -733.9673355 | AA280: =D56 -> -733.9673355 | AB280: =G56 -> 173.0003738 | AC280: =F56 -> 734.7728665
B281: =ABS(B279)/(ABS(B279)+ABS(B280)) -> 0.4169581946 | C281: =ABS(C279)/(ABS(C279)+ABS(C280)) -> 0.05201934747 | D281: 0.1441130056 | E281: 0.160435677 | F281: 0.6497043033 | G281: 0.07126319127 | H281: 0.1245854463 | I281: 0.1442483551 | J281: 0.190745902 | K281: 0.3041885298 | L281: 0.4146435374 | M281: 0.7544104024 | N281: 0.2496707658 | O281: 0.1922211322 | P281: 0.4143773289 | Q281: 0.3816314515 | R281: 0.8126126177 | S281: 0.5546182093 | T281: 0.754207117 | U281: 0.4684045057 | V281: 0.2108653693 | W281: 0.3313739642 | X281: 0.776906385 | Y281: 0.2782793629 | Z281: 0.4686776453 | AA281: 0.5002742252 | AB281: 0.8094233603 | AC281: 0.303956412
B282: =ABS(B280)/(ABS(B279)+ABS(B280)) -> 0.5830418054 | C282: =ABS(C280)/(ABS(C279)+ABS(C280)) -> 0.9479806525 | D282: 0.8558869944 | E282: 0.839564323 | F282: 0.3502956967 | G282: 0.9287368087 | H282: 0.8754145537 | I282: 0.8557516449 | J282: 0.809254098 | K282: 0.6958114702 | L282: 0.5853564626 | M282: 0.2455895976 | N282: 0.7503292342 | O282: 0.8077788678 | P282: 0.5856226711 | Q282: 0.6183685485 | R282: 0.1873873823 | S282: 0.4453817907 | T282: 0.245792883 | U282: 0.5315954943 | V282: 0.7891346307 | W282: 0.6686260358 | X282: 0.223093615 | Y282: 0.7217206371 | Z282: 0.5313223547 | AA282: 0.4997257748 | AB282: 0.1905766397 | AC282: 0.696043588
B283: =IF($C$56<0,B281*$W$53,B281*$W$54) -> 0.4169581946 | C283: =IF($C$56<0,C281*$W$53,C281*$W$54) -> 0.05201934747 | D283: =IF($C$56<0,D281*$W$53,D281*$W$54) -> 0.1441130056 | E283: 0.160435677 | F283: =IF($E$56<0,F281*$W$53,F281*$W$54) -> 0.6497043033 | G283: =IF($G$56<0,G281*$W$53,G281*$W$54) -> 0.07126319127 | H283: =IF($E$56<0,H281*$W$53,H281*$W$54) -> 0.1245854463 | I283: =IF($C$56<0,I281*$W$53,I281*$W$54) -> 0.1442483551 | J283: =IF($G$56<0,J281*$W$53,J281*$W$54) -> 0.190745902 | K283: =IF($E$56<0,K281*$W$53,K281*$W$54) -> 0.3041885298 | L283: =IF($H$56<0,L281*$W$53,L281*$W$54) -> -0.4146435374 | M283: =IF($I$56<0,M281*$W$53,M281*$W$54) -> -0.7544104024 | N283: =IF($G$56<0,N281*$W$53,N281*$W$54) -> 0.2496707658 | O283: =IF($C$56<0,O281*$W$53,O281*$W$54) -> 0.1922211322 | P283: =IF($H$56<0,P281*$W$53,P281*$W$54) -> -0.4143773289 | Q283: =IF($E$56<0,Q281*$W$53,Q281*$W$54) -> 0.3816314515 | R283: =IF($I$56<0,R281*$W$53,R281*$W$54) -> -0.8126126177 | S283: =IF($J$56<0,S281*$W$53,S281*$W$54) -> -0.5546182093 | T283: =IF($I$56<0,T281*$W$53,T281*$W$54) -> -0.754207117 | U283: =IF($J$56<0,U281*$W$53,U281*$W$54) -> -0.4684045057 | V283: =IF($G$56<0,V281*$W$53,V281*$W$54) -> 0.2108653693 | W283: =IF($E$56<0,W281*$W$53,W281*$W$54) -> 0.3313739642 | X283: =IF($I$56<0,X281*$W$53,X281*$W$54) -> -0.776906385 | Y283: =IF($C$56<0,Y281*$W$53,Y281*$W$54) -> 0.2782793629 | Z283: =IF($J$56<0,Z281*$W$53,Z281*$W$54) -> -0.4686776453 | AA283: =IF($F$56<0,AA281*$W$53,AA281*$W$54) -> 0.5002742252 | AB283: =IF($F$56<0,AB281*$W$53,AB281*$W$54) -> 0.8094233603 | AC283: =IF($E$56<0,AC281*$W$53,AC281*$W$54) -> 0.303956412
B284: =IF($G$56<0,B282*$W$53,B282*$W$54) -> 0.5830418054 | C284: =IF($I$56<0,C282*$W$53,C282*$W$54) -> -0.9479806525 | D284: =IF($F$56<0,D282*$W$53,D282*$W$54) -> 0.8558869944 | E284: =IF($J$56<0,E282*$W$53,E282*$W$54) -> -0.839564323 | F284: =IF($G$56<0,F282*$W$53,F282*$W$54) -> 0.3502956967 | G284: =IF($I$56<0,G282*$W$53,G282*$W$54) -> -0.9287368087 | H284: =IF($I$56<0,H282*$W$53,H282*$W$54) -> -0.8754145537 | I284: =IF($D$56<0,I282*$W$53,I282*$W$54) -> -0.8557516449 | J284: =IF($D$56<0,J282*$W$53,J282*$W$54) -> -0.809254098 | K284: -0.6958114702 | L284: -0.5853564626 | M284: -0.2455895976 | N284: =IF($H$56<0,N282*$W$53,N282*$W$54) -> -0.7503292342 | O284: =IF($H$56<0,O282*$W$53,O282*$W$54) -> -0.8077788678 | P284: =IF($F$56<0,P282*$W$53,P282*$W$54) -> 0.5856226711 | Q284: =IF($H$56<0,Q282*$W$53,Q282*$W$54) -> -0.6183685485 | R284: =IF($H$56<0,R282*$W$53,R282*$W$54) -> -0.1873873823 | S284: =IF($H$56<0,S282*$W$53,S282*$W$54) -> -0.4453817907 | T284: =IF($F$56<0,T282*$W$53,T282*$W$54) -> 0.245792883 | U284: 0.5315954943 | V284: =IF($J$56<0,V282*$W$53,V282*$W$54) -> -0.7891346307 | W284: =IF($J$56<0,W282*$W$53,W282*$W$54) -> -0.6686260358 | X284: -0.223093615 | Y284: =IF($E$56<0,Y282*$W$53,Y282*$W$54) -> 0.7217206371 | Z284: =IF($D$56<0,Z282*$W$53,Z282*$W$54) -> -0.5313223547 | AA284: =IF($D$56<0,AA282*$W$53,AA282*$W$54) -> -0.4997257748 | AB284: =IF($G$56<0,AB282*$W$53,AB282*$W$54) -> 0.1905766397 | AC284: =IF($F$56<0,AC282*$W$53,AC282*$W$54) -> 0.696043588
B288: IF(C56<0;N57*$W$53;N57*$W$54)
